fUST/lending_fUST_20251125
["ID","MTS","AMOUNT","RATE_DAILY","PERIOD"]
[394870549,1764043634483,-231.14449367,7.526e-05,2]
[394870550,1764043637211,-228.0,7.526e-05,2]
[394870551,1764043639305,-241.31329154,7.526e-05,2]
[394870552,1764043641850,-203.19679978,7.526e-05,2]
[394870553,1764043646107,-181.17699002,7.526e-05,2]
[394870554,1764043646130,-119.76359321,7.526e-05,2]
[394870556,1764043648639,-277.72766513,7.526e-05,2]
[394870557,1764043650812,-269.8114248,7.526e-05,2]
[394870558,1764043654122,-269.36511444,7.526e-05,2]
[394870559,1764043656695,-274.67365256,7.526e-05,2]
[394870560,1764043656717,-25.32634744,7.526e-05,2]
[394870561,1764043658920,-259.16752215,7.526e-05,2]
[394870562,1764043660957,-167.07545631,7.526e-05,2]
[394870563,1764043664193,-359.36207344,7.526e-05,2]
[394870564,1764043664454,1311.36,0.00014,10]
[394870565,1764043666217,-226.56120338,7.526e-05,2]
[394870566,1764043668326,-173.84884742,7.526e-05,2]
[394870567,1764043668349,-123.94802081,7.526e-05,2]
[394870568,1764043669893,111.8617217,7.525e-05,2]
[394870569,1764043669914,1088.1382783,7.525e-05,2]
[394870570,1764043673764,-200.0,7.526e-05,2]
[394870571,1764043682380,300.0,7.525e-05,2]
[394870574,1764043742620,300.0,7.525e-05,2]
[394870575,1764043751175,-887.39342933,7.526e-05,2]
[394870576,1764043751197,-1211.34145014,7.526e-05,2]
[394870577,1764043751221,-1211.34145014,7.526e-05,2]
[394870578,1764043751244,-794.13452148,7.526e-05,2]
[394870579,1764043795814,8311.8717217,7.427e-05,2]
[394870580,1764043795839,10000.01,7.427e-05,2]
[394870581,1764043795864,10000.01,7.427e-05,2]
[394870582,1764043795888,10000.01,7.427e-05,2]
[394870583,1764043795913,10000.01,7.427e-05,2]
[394870584,1764043795937,10000.01,7.427e-05,2]
[394870585,1764043795961,10000.01,7.427e-05,2]
[394870586,1764043795983,10000.01,7.427e-05,2]
[394870587,1764043796005,10000.01,7.427e-05,2]
[394870588,1764043796028,10000.01,7.427e-05,2]
[394870589,1764043805667,300.0,7.352e-05,2]
[394870590,1764043814164,1800.0,7.352e-05,2]
[394870616,1764043831779,-1800.0,7.278e-05,2]
[394870618,1764043831788,-1800.0,7.352e-05,2]
[394870620,1764043831797,-300.0,7.426e-05,2]
[394870622,1764043831806,-1200.0,7.426e-05,2]
[394870624,1764043831817,-300.0,7.426e-05,2]
[394870626,1764043831826,-89532.43578321,7.427e-05,2]
[394870628,1764043831842,-131759.47070626,7.427e-05,2]
[394870640,1764043837795,-500.0,7.426e-05,2]
[394870641,1764043837805,-833.75477664,7.426e-05,2]
[394870642,1764043837814,-500.0,7.426e-05,2]
[394870643,1764043837826,-833.75477664,7.426e-05,2]
[394870644,1764043837836,-833.75477664,7.426e-05,2]
[394870645,1764043837846,-833.75477664,7.426e-05,2]
[394870646,1764043837855,-833.75477664,7.426e-05,2]
[394870647,1764043837864,-241.34916652,7.426e-05,2]
[394870648,1764043837873,-833.75477664,7.426e-05,2]
[394870649,1764043837882,-833.75477664,7.426e-05,2]
[394870650,1764043837892,-500.0,7.426e-05,2]
[394870651,1764043837902,-833.75477664,7.426e-05,2]
[394870652,1764043837911,-833.75477664,7.426e-05,2]
[394870653,1764043837921,-833.75477664,7.426e-05,2]
[394870654,1764043837931,-833.75477664,7.426e-05,2]
[394870655,1764043837940,-833.75477664,7.426e-05,2]
[394870656,1764043837949,-833.75477664,7.426e-05,2]
[394870657,1764043837958,-833.75477664,7.426e-05,2]
[394870658,1764043837967,-833.75477664,7.426e-05,2]
[394870659,1764043837976,-500.0,7.426e-05,2]
[394870660,1764043837984,-500.0,7.426e-05,2]
[394870661,1764043837994,-374.57805515,7.426e-05,2]
[394870662,1764043838004,-435.38506836,7.426e-05,2]
[394870663,1764043838013,-64029.86445701,7.427e-05,2]
[394870664,1764043838024,-8984.00836411,7.427e-05,2]
[394870665,1764043838036,-49983.31817891,7.427e-05,2]
[394870666,1764043838047,-22980.45102758,7.427e-05,2]
[394870667,1764043838058,-32987.89925653,7.427e-05,2]
[394870668,1764043838069,-19227.72316444,7.427e-05,2]
[394870669,1764043838080,-16861.96021824,7.427e-05,2]
[394870670,1764043838091,-3335.44602688,7.427e-05,2]
[394870671,1764043838101,-343.48819371,7.427e-05,2]
[394870683,1764043841245,-3e-08,7.352e-05,2]
[394870686,1764043844333,-6955.82760163,7.352e-05,2]
[394870687,1764043844343,-218.40835437,7.427e-05,2]
[394870688,1764043844353,-7293.41592566,7.427e-05,2]
[394870696,1764043862102,228.93448887,7.206e-05,2]
[394870697,1764043952848,174.82175,0.0001111,3]
[394870698,1764043953441,174.82175,0.00014,10]
[394870699,1764043954733,203.7821716,6.489e-05,2]
[394870700,1764044034091,-228.93448887,7.279e-05,2]
[394870701,1764044034113,-101.73846762,7.353e-05,2]
[394870710,1764044239384,300.0,7.182e-05,2]
[394870711,1764044254787,300.0,7.182e-05,2]
[394870712,1764044262599,222.02631632,7.219e-05,2]
[394870713,1764044286145,222.02631632,7.219e-05,2]
[394870715,1764044308926,222.02631632,7.219e-05,2]
[394870716,1764044331351,222.02631632,7.219e-05,2]
[394870717,1764044353912,222.02631632,7.219e-05,2]
[394870718,1764044377191,222.02631632,7.219e-05,2]
[394870719,1764044378021,-217.36372703,7.292e-05,2]
[394870720,1764044380683,-4.66258929,7.292e-05,2]
[394870721,1764044380704,-168.11075791,7.402e-05,2]
[394870722,1764044382247,-131.88924209,7.402e-05,2]
[394870723,1764044382267,-219.85908672,7.403e-05,2]
[394870724,1764044383787,-280.14091328,7.403e-05,2]
[394870725,1764044383808,-138.09966404,7.403e-05,2]
[394870726,1764044385305,-169.84559391,7.403e-05,2]
[394870727,1764044387814,-192.05474205,7.403e-05,2]
[394870728,1764044387837,-12.84224234,7.403e-05,2]
[394870729,1764044390410,-334.19759011,7.403e-05,2]
[394870730,1764044394552,-152.96016755,7.403e-05,2]
[394870731,1764044394575,-83.30619611,7.403e-05,2]
[394870732,1764044397824,-214.45717503,7.403e-05,2]
[394870733,1764044400038,7001.81797286,7.329e-05,2]
[394870734,1764044400962,-202.23662886,7.403e-05,2]
[394870735,1764044400983,-82.98844963,7.403e-05,2]
[394870736,1764044402595,-300.0,7.402e-05,2]
[394870737,1764044402615,-92.15428727,7.403e-05,2]
[394870738,1764044405189,-211.43809544,7.403e-05,2]
[394870739,1764044406759,-113.41916766,7.403e-05,2]
[394870740,1764044406785,-38.23534139,7.403e-05,2]
[394870741,1764044408765,2998.19202714,7.329e-05,2]
[394870742,1764044408790,580.88965236,7.329e-05,2]
[394870743,1764044410964,-164.87319919,7.403e-05,2]
[394870745,1764044413001,-303.86037284,7.403e-05,2]
[394870746,1764044413024,-26.03698059,7.403e-05,2]
[394870747,1764044415221,-182.61743527,7.403e-05,2]
[394870748,1764044416811,1100.07199591,7.329e-05,2]
[394870749,1764044417298,-291.34558414,7.403e-05,2]
[394870750,1764044417318,-31.75671706,7.403e-05,2]
[394870751,1764044419318,-233.33112594,7.423e-05,2]
[394870756,1764044552577,174.82175,0.0001111,3]
[394870757,1764044589355,-194.0,7.423e-05,2]
[394870758,1764044591280,3583.0,7.349e-05,2]
[394870761,1764044795891,3389.0,7.203e-05,2]
[394870762,1764044811727,3389.0,7.203e-05,2]
[394870764,1764044827934,169.683033,3.211e-05,2]
[394870765,1764044828409,169.683033,4.816e-05,2]
[394870766,1764044828457,169.683033,6.421e-05,2]
[394870770,1764044918674,-183.55548775,7.252e-05,2]
[394870771,1764044948535,-116.44451225,7.252e-05,2]
[394870772,1764044948556,-139.51307733,7.325e-05,2]
[394870773,1764044950626,-160.48692267,7.325e-05,2]
[394870774,1764044950647,-57.16007132,7.326e-05,2]
[394870775,1764044958135,-182.61743527,7.253e-05,2]
[394870776,1764044958156,-442.83992868,7.326e-05,2]
[394870777,1764044958177,-122.6817278,7.326e-05,2]
[394870778,1764044978660,-368.67408469,7.253e-05,2]
[394870779,1764044981138,-225.48610451,7.253e-05,2]
[394870780,1764044985432,-237.87090852,7.253e-05,2]
[394870781,1764044987186,-399.75413707,7.253e-05,2]
[394870782,1764044988879,-153.64209412,7.253e-05,2]
[394870783,1764044990362,-151.09398994,7.253e-05,2]
[394870784,1764044992459,-244.94068569,7.253e-05,2]
[394870785,1764044996472,-300.0,7.253e-05,2]
[394870786,1764045000252,-289.17207496,7.253e-05,2]
[394870787,1764045001977,-304.52639219,7.253e-05,2]
[394870788,1764045002826,183.55548775,7.18e-05,2]
[394870789,1764045005664,-256.50747809,7.252e-05,2]
[394870790,1764045008409,-43.49252191,7.252e-05,2]
[394870791,1764045008431,-123.37529587,7.252e-05,2]
[394870792,1764045010661,-274.62470413,7.252e-05,2]
[394870793,1764045010684,-179.90180668,7.253e-05,2]
[394870794,1764045012839,-270.94374857,7.253e-05,2]
[394870795,1764045014406,-161.94663041,7.253e-05,2]
[394870796,1764045016938,-205.83282348,7.253e-05,2]
[394870797,1764045019806,-369.27974541,7.253e-05,2]
[394870798,1764045022622,-183.34281655,7.253e-05,2]
[394870799,1764045026177,-283.66923729,7.253e-05,2]
[394870800,1764045030046,-247.63805974,7.253e-05,2]
[394870847,1764045032170,-154.18634423,7.253e-05,2]
[394870882,1764045033901,-266.24944215,7.253e-05,2]
[394870883,1764045036180,-155.7719901,7.253e-05,2]
[394870884,1764045036660,-587.839754,7.253e-05,2]
[394870885,1764045036716,-610.94909855,7.253e-05,2]
[394870914,1764045038128,-3494.64775546,7.253e-05,2]
[394870915,1764045038140,-3087.56699934,7.253e-05,2]
[394870916,1764045038156,-673.35,7.253e-05,2]
[394870917,1764045038168,-826.1493687,7.253e-05,2]
[394870918,1764045038178,-37.7906313,7.303e-05,2]
[394870919,1764045039611,-295.25583987,7.303e-05,2]
[394870925,1764045043361,-167.41838742,7.303e-05,2]
[394870926,1764045043382,-212.79262606,7.303e-05,2]
[394871045,1764045044637,-21.33332413,7.303e-05,2]
[394871047,1764045044647,-500.0,7.303e-05,2]
[394871049,1764045044656,-377.3182722,7.326e-05,2]
[394871051,1764045044666,-218.94441657,7.326e-05,2]
[394871053,1764045044675,-500.0,7.326e-05,2]
[394871055,1764045044685,-500.0,7.326e-05,2]
[394871057,1764045044694,-500.0,7.326e-05,2]
[394871058,1764045044704,-500.0,7.326e-05,2]
[394871060,1764045044714,-500.0,7.326e-05,2]
[394871062,1764045044723,-382.4026421,7.326e-05,2]
[394871128,1764045045339,-117.5973579,7.326e-05,2]
[394871130,1764045045349,-648.61565159,7.326e-05,2]
[394871132,1764045045359,-500.0,7.326e-05,2]
[394871134,1764045045368,-500.0,7.326e-05,2]
[394871136,1764045045377,-500.0,7.326e-05,2]
[394871138,1764045045387,-500.0,7.326e-05,2]
[394871140,1764045045397,-500.0,7.326e-05,2]
[394871142,1764045045406,-500.0,7.326e-05,2]
[394871144,1764045045415,-233.78699051,7.326e-05,2]
[394871152,1764045045529,-266.21300949,7.326e-05,2]
[394871153,1764045045539,-500.0,7.326e-05,2]
[394871154,1764045045549,-365.07144153,7.326e-05,2]
[394871273,1764045046676,-134.92855847,7.326e-05,2]
[394871277,1764045046704,-122.02198553,7.326e-05,2]
[394871426,1764045048279,-170.81455765,7.326e-05,2]
[394871429,1764045048308,-38.28318599,7.326e-05,2]
[394871762,1764045051608,-171.75570015,7.326e-05,2]
[394872013,1764045054147,-289.96111386,7.326e-05,2]
[394872017,1764045054177,-176.22626387,7.326e-05,2]
[394872405,1764045057984,-156.92979705,7.253e-05,2]
[394872906,1764045062905,243.46648588,7.18e-05,2]
[394872959,1764045063486,-409.13160108,7.253e-05,2]
[394873285,1764045066734,-283.66738159,7.253e-05,2]
[394873862,1764045073192,-188.92525109,7.253e-05,2]
[394874421,1764045079037,-174.70374347,7.253e-05,2]
[394874654,1764045081348,-408.24363004,7.253e-05,2]
[394874847,1764045084111,-197.23116137,7.253e-05,2]
[394874848,1764045086746,-3539.59545713,7.253e-05,2]
[394874849,1764045086843,-311.07474891,7.303e-05,2]
[394874850,1764045088350,-180.465174,7.303e-05,2]
[394874851,1764045092175,-8.46007709,7.303e-05,2]
[394874852,1764045092198,-167.48231775,7.303e-05,2]
[394874853,1764045092368,433.83149372,7.23e-05,2]
[394874854,1764045096155,-332.51768225,7.303e-05,2]
[394874855,1764045096178,-113.69807375,7.303e-05,2]
[394874856,1764045098339,-174.04848096,7.303e-05,2]
[394874857,1764045099820,-121.06674343,7.303e-05,2]
[394874858,1764045099843,-129.39661295,7.303e-05,2]
[394874859,1764045100230,2486.98759202,7.23e-05,2]
[394874860,1764045100254,927.92873727,7.23e-05,2]
[394874861,1764045101310,-223.05424406,7.303e-05,2]
[394874862,1764045101964,-147.54914299,7.303e-05,2]
[394874863,1764045101991,-500.0,7.303e-05,2]
[394874864,1764045102018,-486.58191562,7.303e-05,2]
[394874865,1764045102047,-554.56780212,7.303e-05,2]
[394874866,1764045102075,-578.65138716,7.303e-05,2]
[394874867,1764045102102,-500.0,7.303e-05,2]
[394874868,1764045102133,-300.0,7.325e-05,2]
[394874869,1764045102169,-323.77373613,7.326e-05,2]
[394874870,1764045102202,-500.0,7.326e-05,2]
[394874871,1764045102236,-500.0,7.326e-05,2]
[394874872,1764045102271,-500.0,7.326e-05,2]
[394874873,1764045102463,-261.18232021,7.326e-05,2]
[394874874,1764045102496,-500.0,7.326e-05,2]
[394874875,1764045102530,-500.0,7.326e-05,2]
[394874876,1764045102563,-500.0,7.326e-05,2]
[394874877,1764045102596,-500.0,7.326e-05,2]
[394874878,1764045102788,-635.5288886,7.326e-05,2]
[394874879,1764045103247,202.72,7.181e-05,2]
[394874880,1764045103421,-266.47809034,7.327e-05,2]
[394874881,1764045103498,-8623.04219556,7.327e-05,2]
[394874882,1764045103514,-10000.01,7.327e-05,2]
[394874883,1764045103536,-10000.01,7.327e-05,2]
[394874884,1764045103561,-10000.01,7.327e-05,2]
[394874885,1764045103580,-10000.01,7.327e-05,2]
[394874886,1764045104949,-10000.01,7.327e-05,2]
[394874887,1764045106051,-270.62164725,7.327e-05,2]
[394874888,1764045110542,-300.0,7.254e-05,2]
[394874889,1764045112164,-200.0,7.254e-05,2]
[394874890,1764045114588,-89.95694602,7.254e-05,2]
[394874891,1764045114611,-210.04305398,7.291e-05,2]
[394874892,1764045116167,-24.26233603,7.291e-05,2]
[394874893,1764045116194,-130.20487294,7.327e-05,2]
[394874894,1764045117781,-157.09116636,7.327e-05,2]
[394874895,1764045119960,-271.61691028,7.327e-05,2]
[394874896,1764045121956,-167.39675758,7.327e-05,2]
[394874897,1764045122194,163.18,1e-05,2]
[394874898,1764045122525,163.18,2.2e-05,2]
[394874899,1764045122769,163.18,3.4e-05,2]
[394874900,1764045123773,-300.0,7.326e-05,2]
[394874901,1764045123810,-13.99772386,7.327e-05,2]
[394874902,1764045127592,-281.84339141,7.254e-05,2]
[394874903,1764045129357,-435.32121065,7.254e-05,2]
[394874904,1764045129380,-9129.3675787,7.254e-05,2]
[394874905,1764045130114,-220.91308645,7.327e-05,2]
[394874906,1764045140406,300.0,7.254e-05,2]
[394874907,1764045144704,-9700.01,7.327e-05,2]
[394874908,1764045144858,-10000.01,7.327e-05,2]
[394874909,1764045144917,-10000.01,7.327e-05,2]
[394874910,1764045145033,-10000.01,7.327e-05,2]
[394874911,1764045145131,-10000.01,7.327e-05,2]
[394874912,1764045145248,-10000.01,7.327e-05,2]
[394874913,1764045145361,-10000.01,7.327e-05,2]
[394874914,1764045145478,-10000.01,7.327e-05,2]
[394874915,1764045145690,-10000.01,7.327e-05,2]
[394874916,1764045145803,-10000.01,7.327e-05,2]
[394874917,1764045148237,450.24275997,7.23e-05,2]
[394874918,1764045171943,1560.58601592,7.23e-05,2]
[394874919,1764045195919,1560.58601592,7.23e-05,2]
[394874920,1764045218610,1560.58601592,7.23e-05,2]
[394874921,1764045241019,1560.58601592,7.23e-05,2]
[394874922,1764045263703,1560.58601592,7.23e-05,2]
[394874923,1764045286146,1560.58601592,7.23e-05,2]
[394874924,1764045308268,950.24275997,7.23e-05,2]
[394874925,1764045309787,-156.10791418,7.303e-05,2]
[394874926,1764045317035,156.10791418,7.23e-05,2]
[394874927,1764045383537,-184.26002904,7.323e-05,2]
[394874928,1764045383560,-11.22684854,7.325e-05,2]
[394874929,1764045489162,-328.78613217,7.324e-05,2]
[394874930,1764045493821,-384.21386783,7.324e-05,2]
[394874931,1764045493844,-7.44598539,7.325e-05,2]
[394874932,1764045495945,-187.32716607,7.325e-05,2]
[394874933,1764045495968,-94.33086715,7.325e-05,2]
[394874934,1764045518561,-258.23957762,7.325e-05,2]
[394874935,1764045523312,-197.89598139,7.325e-05,2]
[394874936,1764045535232,197.89598139,7.179e-05,2]
[394874937,1764045563648,-217.53357384,7.252e-05,2]
[394874938,1764045563671,-79.36960458,7.325e-05,2]
[394874939,1764045583152,166.52651781,7.179e-05,2]
[394874940,1764045638555,-166.52651781,7.252e-05,2]
[394874941,1764045638577,-229.54793205,7.303e-05,2]
[394874942,1764045640852,-64.58691374,7.303e-05,2]
[394874943,1764045640875,-156.63234757,7.303e-05,2]
[394874944,1764045643512,-223.76223892,7.303e-05,2]
[394874945,1764045645632,-119.60541351,7.303e-05,2]
[394874946,1764045645654,-112.92451273,7.303e-05,2]
[394874947,1764045648980,-232.21407067,7.303e-05,2]
[394874948,1764045650477,-60.64465091,7.303e-05,2]
[394874949,1764045650498,-186.52770012,7.303e-05,2]
[394874950,1764045652970,-226.37372118,7.303e-05,2]
[394874951,1764045656077,-87.0985787,7.303e-05,2]
[394874952,1764045656101,-212.9014213,7.303e-05,2]
[394874953,1764045658243,-196.54015819,7.303e-05,2]
[394874954,1764045659816,-90.55842051,7.303e-05,2]
[394874955,1764045659838,-63.18577458,7.303e-05,2]
[394874956,1764045661976,-320.53733789,7.303e-05,2]
[394874957,1764045663822,749.85148227,7.23e-05,2]
[394874958,1764045664754,-116.27688753,7.303e-05,2]
[394874959,1764045664776,-116.99565406,7.303e-05,2]
[394874960,1764045666906,-370.59365011,7.303e-05,2]
[394874961,1764045670499,-12.41069583,7.303e-05,2]
[394874962,1764045670520,-153.5287497,7.303e-05,2]
[394874963,1764045671964,523.19953782,7.23e-05,2]
[394874964,1764045672152,-301.67256953,7.303e-05,2]
[394874965,1764045674564,-55.58752276,7.303e-05,2]
[394874966,1764045674592,-182.6891757,7.324e-05,2]
[394874967,1764045676674,-117.3108243,7.324e-05,2]
[394874968,1764045676703,-170.55035138,7.325e-05,2]
[394874969,1764045679498,-170.59365011,7.325e-05,2]
[394874970,1764045687172,500.0,7.23e-05,2]
[394874971,1764045687846,-206.68240134,7.303e-05,2]
[394874972,1764045694959,1295.07758962,7.23e-05,2]
[394874975,1764045710238,431.35575847,7.23e-05,2]
[394874977,1764045760183,171.822045,0.0001111,3]
[394874978,1764045983661,-206.68240134,7.081e-05,2]
[394874979,1764045983685,-81.94917122,7.203e-05,2]
[394874980,1764045986468,-203.95489477,7.203e-05,2]
[394874981,1764045990255,-151.8744075,7.131e-05,2]
[394874982,1764045992690,-179.28524712,7.131e-05,2]
[394874983,1764045995437,-55.31460543,7.131e-05,2]
[394874984,1764045995464,-216.34355787,7.203e-05,2]
[394874985,1764045995490,-19.64760595,7.203e-05,2]
[394874986,1764046014663,-192.60023501,7.131e-05,2]
[394874987,1764046016352,-231.5189478,7.131e-05,2]
[394874988,1764046019485,-147.55165295,7.131e-05,2]
[394874989,1764046019506,-97.19769136,7.203e-05,2]
[394874990,1764046020927,-160.16753111,7.203e-05,2]
[394874991,1764046023306,-267.07267733,7.202e-05,2]
[394874992,1764046025669,-32.92732267,7.202e-05,2]
[394874993,1764046025691,-161.64439858,7.203e-05,2]
[394874994,1764046027205,-61.342773,7.203e-05,2]
[394874995,1764046027226,-222.9449107,7.203e-05,2]
[394874996,1764046032104,-175.83626848,7.203e-05,2]
[394874997,1764046034824,-101.21882082,7.203e-05,2]
[394874998,1764046034850,-308.55829148,7.203e-05,2]
[394874999,1764046037742,-191.44170852,7.203e-05,2]
[394875000,1764046037767,-66.40316766,7.203e-05,2]
[394875001,1764046042709,-169.43156893,7.203e-05,2]
[394875002,1764046045781,-261.04740295,7.203e-05,2]
[394875003,1764046048623,-3.11786046,7.203e-05,2]
[394875004,1764046048646,-208.87630306,7.203e-05,2]
[394875005,1764046051975,-84.4412956,7.203e-05,2]
[394875006,1764046051996,-222.98722908,7.224e-05,2]
[394875007,1764046054399,-196.88817137,7.224e-05,2]
[394875008,1764046056835,-303.11182863,7.224e-05,2]
[394875009,1764046059564,-95.01277092,7.224e-05,2]
[394875010,1764046059586,-216.68210091,7.224e-05,2]
[394875011,1764046061719,-283.31789909,7.224e-05,2]
[394875012,1764046061740,-112.336206,7.224e-05,2]
[394875029,1764046065070,-233.10556908,7.224e-05,2]
[394875030,1764046068902,-7.81931652,7.224e-05,2]
[394875031,1764046068927,-258.75574069,7.224e-05,2]
[394875032,1764046071174,-169.63453366,7.223e-05,2]
[394875033,1764046073220,-269.1362405,7.223e-05,2]
[394875034,1764046077446,-192.30817301,7.223e-05,2]
[394875035,1764046079078,-229.07687745,7.223e-05,2]
[394875036,1764046081618,-129.84417538,7.223e-05,2]
[394875037,1764046081645,-103.98306771,7.224e-05,2]
[394875038,1764046083940,-213.44073139,7.223e-05,2]
[394875039,1764046085507,-86.55926861,7.223e-05,2]
[394875040,1764046085532,-137.2611916,7.224e-05,2]
[394875041,1764046085836,-228.83106153,7.224e-05,2]
[394875042,1764046088545,-275.16520242,7.224e-05,2]
[394875043,1764046088568,-137.35749399,7.224e-05,2]
[394875044,1764046090474,-27.65257563,7.224e-05,2]
[394875045,1764046090503,-261.05983218,7.224e-05,2]
[394875046,1764046091974,-190.67228765,7.224e-05,2]
[394875047,1764046094670,-48.26788017,7.224e-05,2]
[394875048,1764046094693,-105.13308765,7.224e-05,2]
[394875049,1764046097399,-216.56073041,7.224e-05,2]
[394875050,1764046099529,-178.30618194,7.224e-05,2]
[394875051,1764046099558,-118.1170746,7.224e-05,2]
[394875052,1764046102317,-209.35266033,7.224e-05,2]
[394875053,1764046107800,-162.99478046,7.224e-05,2]
[394875054,1764046108006,319.02160669,7.152e-05,2]
[394875055,1764046110366,-9.53548461,7.224e-05,2]
[394875056,1764046110390,-368.22040299,7.224e-05,2]
[394875057,1764046113056,-131.4595159,7.224e-05,2]
[394875058,1764046113083,-173.13522886,7.224e-05,2]
[394875059,1764046117623,-300.0,7.224e-05,2]
[394875060,1764046120736,-26.86477114,7.224e-05,2]
[394875061,1764046120766,-135.08103464,7.224e-05,2]
[394875062,1764046123308,172.8553952,7.152e-05,2]
[394875063,1764046131158,1307.2912186,7.151e-05,2]
[394875064,1764046204947,-300.0,7.222e-05,2]
[394875065,1764046204975,-300.0,7.222e-05,2]
[394875128,1764046232566,-768.41661478,7.223e-05,2]
[394875130,1764046232579,-60.50638305,7.223e-05,2]
[394875132,1764046232589,-244.73753001,7.223e-05,2]
[394875199,1764046238737,597.28276412,7.222e-05,2]
[394875215,1764046240619,1120.08990907,7.222e-05,2]
[394875216,1764046240685,1120.08990907,7.222e-05,2]
[394875217,1764046240728,1120.08990907,7.222e-05,2]
[394875218,1764046240771,1120.08990907,7.222e-05,2]
[394875219,1764046240815,1120.08990907,7.222e-05,2]
[394875220,1764046240914,1120.08990907,7.222e-05,2]
[394875221,1764046240963,-246.47532456,7.224e-05,2]
[394875222,1764046240973,-500.0,7.224e-05,2]
[394875223,1764046240982,-206.68240134,7.225e-05,2]
[394875224,1764046240991,-151.0,7.225e-05,2]
[394875225,1764046241001,-151.0,7.225e-05,2]
[394875226,1764046241010,-151.0,7.225e-05,2]
[394875227,1764046241020,-151.0,7.225e-05,2]
[394875228,1764046241029,-151.0,7.225e-05,2]
[394875229,1764046241039,-584.727062,7.226e-05,2]
[394875230,1764046241048,-584.727062,7.226e-05,2]
[394875231,1764046241058,-584.727062,7.226e-05,2]
[394875232,1764046241067,-584.727062,7.226e-05,2]
[394875233,1764046241076,-14423.43615813,7.226e-05,2]
[394875234,1764046242320,-3e-08,7.226e-05,2]
[394875235,1764046242357,1120.08990907,7.222e-05,2]
[394875236,1764046242403,1120.08990907,7.222e-05,2]
[394875237,1764046242448,442.00796332,7.222e-05,2]
[394875238,1764046242479,678.08194575,7.222e-05,2]
[394875239,1764046242523,1120.08990907,7.222e-05,2]
[394875240,1764046242565,1120.08990907,7.222e-05,2]
[394875241,1764046242604,1120.08990907,7.222e-05,2]
[394875242,1764046242639,1120.08990907,7.222e-05,2]
[394875243,1764046242700,1120.08990907,7.222e-05,2]
[394875244,1764046242749,1120.08990907,7.222e-05,2]
[394875245,1764046242799,1120.08990907,7.222e-05,2]
[394875247,1764046242861,1120.08990907,7.222e-05,2]
[394875255,1764046242923,361.20878169,7.222e-05,2]
[394875259,1764046242954,932.69115074,7.222e-05,2]
[394875265,1764046243006,1120.08990907,7.222e-05,2]
[394875272,1764046243060,1120.08990907,7.222e-05,2]
[394875280,1764046243122,1293.89993243,7.222e-05,2]
[394875284,1764046243176,1120.08990907,7.222e-05,2]
[394875285,1764046243228,1293.89993243,7.222e-05,2]
[394875286,1764046243277,1120.08990907,7.222e-05,2]
[394875287,1764046243327,1120.08990907,7.222e-05,2]
[394875288,1764046243369,879.06943905,7.222e-05,2]
[394875289,1764046243399,241.02047002,7.222e-05,2]
[394875290,1764046243454,1120.08990907,7.222e-05,2]
[394875291,1764046243512,1293.89993243,7.222e-05,2]
[394875292,1764046243560,1293.89993243,7.222e-05,2]
[394875293,1764046243612,1120.08990907,7.222e-05,2]
[394875294,1764046243662,1293.89993243,7.222e-05,2]
[394875295,1764046243713,1120.08990907,7.222e-05,2]
[394875296,1764046243766,1293.89993243,7.222e-05,2]
[394875297,1764046243811,1223.12007305,7.222e-05,2]
[394875299,1764046243840,70.77985938,7.222e-05,2]
[394875300,1764046243910,1293.89993243,7.222e-05,2]
[394875301,1764046243960,1293.89993243,7.222e-05,2]
[394875302,1764046244017,1120.08990907,7.222e-05,2]
[394875305,1764046244286,1293.89993243,7.222e-05,2]
[394875307,1764046244353,1293.89993243,7.222e-05,2]
[394875308,1764046244400,1293.89993243,7.222e-05,2]
[394875309,1764046244440,1293.89993243,7.222e-05,2]
[394875310,1764046244487,1045.74063697,7.222e-05,2]
[394875311,1764046245225,-248.15929546,7.222e-05,2]
[394875312,1764046245260,-1293.89993243,7.222e-05,2]
[394875313,1764046245296,-1293.89993243,7.222e-05,2]
[394875315,1764046245332,-1293.89993243,7.222e-05,2]
[394875316,1764046245370,-446.39188207,7.222e-05,2]
[394875318,1764046246342,-9.90113171,7.222e-05,2]
[394875322,1764046246664,-837.60691865,7.222e-05,2]
[394875323,1764046246675,-1293.89993243,7.222e-05,2]
[394875324,1764046246685,-989.89929323,7.222e-05,2]
[394875325,1764046246698,-130.19061584,7.222e-05,2]
[394875326,1764046246708,-1293.89993243,7.222e-05,2]
[394875327,1764046246717,-1293.89993243,7.222e-05,2]
[394875328,1764046246727,-1120.08990907,7.222e-05,2]
[394875329,1764046246736,-1293.89993243,7.222e-05,2]
[394875330,1764046246746,-1120.08990907,7.222e-05,2]
[394875331,1764046246755,-1120.08990907,7.222e-05,2]
[394875332,1764046246765,-1120.08990907,7.222e-05,2]
[394875333,1764046246775,-530.32060474,7.222e-05,2]
[394875335,1764046247411,-372.9242503,7.222e-05,2]
[394875336,1764046262425,156.67,1e-05,2]